bitfinex-derivatives/quotes_BNBF0:USTF0_20250406
["timestamp","ask_amount","ask_price","bid_price","bid_amount"]
[1743967273790,0.995,557.4,556.26,0.35954409]
[1743967274191,1.096,557.39,556.26,0.35954409]
[1743967275091,4.08142691,557.39,556.26,0.35954409]
[1743967275391,2.47682945,557.39,556.26,0.35954409]
[1743967275690,0.862,557.38,556.26,0.35954409]
[1743967276088,2.46639737,557.38,556.26,0.35954409]
[1743967276391,0.862,557.38,556.26,0.35954409]
[1743967276592,2.24282945,557.38,556.26,0.35954409]
[1743967277093,0.862,557.38,556.26,0.35954409]
[1743967277591,1.298,557.37,556.26,0.35954409]
[1743967278191,1.204,557.36,556.26,0.35954409]
[1743967279295,1.204,557.36,556.31,1.33871163]
[1743967279595,1.204,557.36,556.33,0.35949885]
[1743967281402,1.204,557.36,556.46,1.33871163]
[1743967282505,1.204,557.36,556.48,0.35940195]
[1743967285404,1.204,557.36,556.59,1.33871163]
[1743967288806,1.204,557.36,556.6,0.35932446]
[1743967290610,1.2,557.35,556.85,1.33871163]
[1743967290804,1.2,557.35,556.86,0.3591567]
[1743967293912,0.926,557.34,556.86,0.3591567]
[1743967310127,0.5339643,557.34,557.03,1.33871163]
[1743967310322,1.2,557.35,557.04,0.35904064]
[1743967313630,0.922,557.43,557.04,0.35904064]
[1743967315527,0.922,557.43,557.05,1.33871163]
[1743967315727,0.922,557.43,557.06,0.35902775]
[1743967317924,0.922,557.43,557.15,1.33871163]
[1743967318124,0.922,557.43,557.16,0.35896331]
[1743967340145,1.123,557.53,557.16,0.35896331]
[1743967355961,4.241,557.55,557.18,1.33871163]
[1743967356356,1.235,557.55,557.18,1.33871163]
[1743967357759,1.235,557.55,557.16,0.35896331]
[1743967358661,1.235,557.55,556.89,1.33871163]
[1743967359754,2.273,557.54,556.89,1.33871163]
[1743967359960,2.273,557.54,556.72,1.33871163]
[1743967360175,2.273,557.54,556.73,0.35924056]
[1743967362259,1.60296342,557.53,556.73,0.35924056]
[1743967362761,0.962,557.52,556.73,0.35924056]
[1743967362958,2.56377855,557.52,556.73,0.35924056]
[1743967363162,2.34037471,557.52,556.73,0.35924056]
[1743967363661,0.962,557.52,556.73,0.35924056]
[1743967364062,3.94107394,557.52,556.73,0.35924056]
[1743967364262,2.25712844,557.51,556.73,0.35924056]
[1743967364458,1.70832738,557.5,556.73,0.35924056]
[1743967364662,0.32995267,557.49,556.73,0.35924056]
[1743967364863,2.58708111,557.49,556.73,0.35924056]
[1743967365063,1.34513914,557.48,556.46,1.33871163]
[1743967365259,1.37837471,557.47,556.46,1.33871163]
[1743967365564,0.33002237,557.46,556.46,1.33871163]
[1743967366060,1.37837471,557.45,556.46,1.33871163]
[1743967366265,0.33002237,557.44,556.46,1.33871163]
[1743967366466,0.33002237,557.44,550.29,0.63858457]
[1743967366467,3.96552552,557.44,556.22,1.33871163]
[1743967366665,2.58715081,557.43,556.23,0.35956348]
[1743967366862,2.03480392,557.42,556.23,0.35956348]
[1743967367059,2.97907394,557.41,556.23,0.35956348]
[1743967367259,2.253227,557.4,556.23,0.35956348]
[1743967367665,1.37837471,557.39,556.23,0.35956348]
[1743967367864,3.63160171,557.39,556.23,0.35956348]
[1743967368063,2.253227,557.38,556.23,0.35956348]
[1743967368265,1.37837471,557.37,556.23,0.35956348]
[1743967369066,0.35875726,557.48,556.23,0.35956348]
[1743967369361,0.31241584,557.38,556.23,0.35956348]
[1743967369558,0.65398911,557.47,556.23,0.35956348]
[1743967369761,0.32996116,557.46,556.23,0.35956348]
[1743967369964,0.35875726,557.48,556.23,0.35956348]
[1743967370265,1.92467804,557.47,556.23,0.35956348]
[1743967370466,1.9071381,557.47,556.23,0.35956348]
[1743967370667,0.31242145,557.47,556.23,0.35956348]
[1743967372368,1.37837471,557.46,556.23,0.35956348]
[1743967372770,1.37837471,557.45,556.23,0.35956348]
[1743967373262,1.37837471,557.44,556.23,0.35956348]
[1743967373868,1.37837471,557.43,556.23,0.35956348]
[1743967374169,3.62655685,557.43,556.23,0.35956348]
[1743967374369,3.62655685,557.42,556.23,0.35956348]
[1743967374666,2.24818214,557.41,556.23,0.35956348]
[1743967374864,1.37837471,557.4,556.23,0.35956348]
[1743967375070,3.62655685,557.4,556.23,0.35956348]
[1743967375271,3.62655685,557.39,556.23,0.35956348]
[1743967375466,3.62655685,557.38,556.23,0.35956348]
[1743967375668,2.24818214,557.37,556.23,0.35956348]
[1743967375868,3.62655685,557.37,556.23,0.35956348]
[1743967376071,3.44718214,557.36,556.23,0.35956348]
[1743967376272,2.24818214,557.35,556.23,0.35956348]
[1743967376573,1.37837471,557.34,556.23,0.35956348]
[1743967376773,4.53755685,557.34,556.23,0.35956348]
[1743967377072,3.62655685,557.33,556.23,0.35956348]
[1743967377273,2.24649583,557.32,556.23,0.35956348]
[1743967377673,1.37837471,557.31,556.23,0.35956348]
[1743967377870,3.62487054,557.31,556.23,0.35956348]
[1743967378174,2.57613809,557.3,556.23,0.35956348]
[1743967378368,2.57613809,557.29,556.23,0.35956348]
[1743967378574,2.9350241,557.28,556.23,0.35956348]
[1743967378773,3.9545128,557.27,556.23,0.35956348]
[1743967378972,2.24598904,557.26,556.23,0.35956348]
[1743967379171,2.57611078,557.26,556.23,0.35956348]
[1743967379376,0.98340891,557.25,556.23,0.35956348]
[1743967379577,1.70849645,557.24,556.23,0.35956348]
[1743967379877,1.37837471,557.24,556.23,0.35956348]
[1743967380076,3.62436375,557.24,556.23,0.35956348]
[1743967380276,2.24598904,557.23,556.23,0.35956348]
[1743967380477,0.33010289,557.22,556.23,0.35956348]
[1743967380677,2.36176477,557.22,556.23,0.35956348]
[1743967380878,1.59270187,557.21,556.23,0.35956348]
[1743967381178,3.62436375,557.21,556.23,0.35956348]
[1743967381380,2.57474122,557.2,556.23,0.35956348]
[1743967381576,2.03166188,557.19,556.23,0.35956348]
[1743967381778,1.59132478,557.18,556.23,0.35956348]
[1743967381977,2.24461195,557.18,556.23,0.35956348]
[1743967382179,1.70849989,557.17,556.23,0.35956348]
[1743967382380,0.33012518,557.16,556.23,0.35956348]
[1743967382579,3.95311184,557.16,556.23,0.35956348]
[1743967382775,2.57473713,557.15,556.23,0.35956348]
[1743967382978,2.24461195,557.14,556.23,0.35956348]
[1743967383275,2.57486845,557.13,556.23,0.35956348]
[1743967383580,3.62298666,557.12,555.32,1.33871163]
[1743967383775,2.57490638,557.11,555.34,0.36013973]
[1743967383980,2.57490638,557.1,555.34,0.36013973]
[1743967384282,2.57490638,557.09,555.36,1.33871163]
[1743967384483,2.57490638,557.08,555.36,1.33871163]
[1743967384683,2.57490638,557.07,555.36,1.33871163]
[1743967384882,2.57490638,557.06,555.36,1.33871163]
[1743967385076,3.95328109,557.05,555.36,1.33871163]
[1743967385276,2.57490638,557.04,555.36,1.33871163]
[1743967385481,2.57490638,557.03,555.36,1.33871163]
[1743967385780,3.95328109,557.02,555.36,1.33871163]
[1743967385981,2.57490638,557.01,555.36,1.33871163]
[1743967386281,1.066,557.08,555.36,1.33871163]
[1743967386282,4.31234751,557.0,555.38,0.36011379]
[1743967386580,2.93397925,556.99,555.38,0.36011379]
[1743967386780,3.95328109,556.98,555.38,0.36011379]
[1743967386978,2.57490638,556.97,555.38,0.36011379]
[1743967387174,2.57490638,556.96,555.38,0.36011379]
[1743967387378,3.95328109,556.95,555.38,0.36011379]
[1743967387575,0.35911155,556.93,555.38,0.36011379]
[1743967387784,1.92161921,556.92,555.38,0.36011379]
[1743967387979,4.30773094,556.91,555.38,0.36011379]
[1743967388278,2.92936268,556.9,555.38,0.36011379]
[1743967388477,0.3591438,556.88,555.38,0.36011379]
[1743967388781,0.33029443,556.87,555.38,0.36011379]
[1743967388981,1.73753141,556.86,555.38,0.36011379]
[1743967389182,0.68945757,556.85,555.38,0.36011379]
[1743967389383,0.35917605,556.83,555.38,0.36011379]
[1743967389577,1.70866914,556.82,555.38,0.36011379]
[1743967389780,0.33029443,556.81,555.38,0.36011379]
[1743967389981,0.33029443,556.8,555.38,0.36011379]
[1743967390180,0.3592083,556.78,555.38,0.36011379]
[1743967390378,0.33029443,556.77,555.38,0.36011379]
[1743967390679,0.35922766,556.75,555.38,0.36011379]
[1743967390882,0.33029443,556.74,555.38,0.36011379]
[1743967391083,0.68953499,556.73,555.38,0.36011379]
[1743967391282,0.68954144,556.72,555.38,0.36011379]
[1743967391486,0.6895479,556.71,555.38,0.36011379]
[1743967391785,0.68955435,556.7,555.38,0.36011379]
[1743967391986,0.6895608,556.69,555.38,0.36011379]
[1743967392284,0.68956726,556.68,555.38,0.36011379]
[1743967392481,0.68957371,556.67,555.38,0.36011379]
[1743967392680,0.68958016,556.66,555.38,0.36011379]
[1743967392885,0.68958662,556.65,555.38,0.36011379]
[1743967393082,0.35935029,556.56,555.38,0.36011379]
[1743967393286,1.034,556.55,555.38,0.36011379]
[1743967393682,0.33068517,556.54,555.38,0.36011379]
[1743967395287,0.35937612,556.52,555.38,0.36011379]
[1743967395583,0.33072105,556.51,555.38,0.36011379]
[1743967395785,0.69011008,556.5,555.38,0.36011379]
[1743967395986,0.69011654,556.49,555.38,0.36011379]
[1743967396187,0.33072105,556.48,555.38,0.36011379]
[1743967397586,0.35939549,556.49,555.38,0.36011379]
[1743967397782,0.33059654,556.48,555.38,0.36011379]
[1743967398785,0.35940841,556.47,555.38,0.36011379]
[1743967398990,0.33059654,556.46,555.38,0.36011379]
[1743967399583,1.35,556.45,555.38,0.36011379]
[1743967399783,0.33059654,556.44,555.38,0.36011379]
[1743967400190,0.35943425,556.43,555.38,0.36011379]
[1743967400390,0.33068743,556.42,555.38,0.36011379]
[1743967401186,1.88999716,556.42,555.38,0.36011379]
[1743967401384,0.33068743,556.41,555.38,0.36011379]
[1743967401589,1.67290538,556.41,555.38,0.36011379]
[1743967401790,0.33068743,556.4,555.38,0.36011379]
[1743967401988,2.52945868,556.4,554.63,0.31314536]
[1743967402188,2.31181438,556.39,553.96,1.33871163]
[1743967402389,1.88999716,556.38,553.7,1.33871163]
[1743967402590,2.31181438,556.37,553.7,1.33871163]
[1743967402787,1.55930973,556.36,553.83,0.36112164]
[1743967402990,0.33068743,556.35,553.83,0.36112164]
[1743967403191,0.33068743,556.36,553.83,0.36112164]
[1743967403390,0.33068743,556.35,553.83,0.36112164]
[1743967403589,0.31329618,556.34,553.84,0.31329618]
[1743967403989,0.33068743,556.33,553.84,0.31329618]
[1743967404186,0.33068743,556.33,553.96,0.36103689]
[1743967404386,0.35950532,556.32,553.96,0.36103689]
[1743967404692,0.33068743,556.31,553.96,0.36103689]
[1743967405089,0.35951824,556.3,553.96,0.36103689]
[1743967405591,0.33084639,556.29,553.96,0.36103689]
[1743967405791,1.43984639,556.29,553.96,0.36103689]
[1743967405989,0.33084639,556.28,553.96,0.36103689]
[1743967406291,0.33084639,556.27,553.96,0.36103689]
[1743967406591,0.33084639,556.26,553.96,0.36103689]
[1743967406792,0.33084639,556.25,553.96,0.36103689]
[1743967406993,0.33084639,556.28,553.96,0.36103689]
[1743967407187,0.33084639,556.24,553.96,0.36103689]
[1743967407386,0.33084639,556.27,553.96,0.36103689]
[1743967407589,0.33084639,556.26,553.96,0.36103689]
[1743967407790,0.33084639,556.28,553.96,0.36103689]
[1743967407988,0.33084639,556.27,553.96,0.36103689]
[1743967408191,0.31327221,556.27,553.96,0.36103689]
[1743967409393,1.109,556.29,553.96,0.36103689]
[1743967410198,1.109,556.29,554.05,1.33871163]
[1743967410793,1.109,556.29,554.16,0.36090659]
[1743967411697,0.969,556.28,554.16,0.36090659]
[1743967412694,0.969,556.28,554.43,1.33871163]
[1743967412899,0.969,556.28,554.45,0.36071782]
[1743967414698,0.969,556.28,554.68,1.33871163]
[1743967415199,0.969,556.28,554.7,0.36055525]
[1743967417300,0.969,556.28,555.09,1.33871163]
[1743967417601,0.969,556.28,555.11,0.36028895]
[1743967419402,0.969,556.28,555.21,1.33871163]
[1743967420001,0.969,556.28,555.23,0.36021108]
[1743967420602,1.227,556.27,555.23,0.36021108]
[1743967427405,1.311,556.26,555.23,0.36021108]
[1743967429403,1.284,556.25,555.23,0.36021108]
[1743967441021,1.058,556.24,555.23,0.36021108]
[1743967442023,1.137,556.23,555.23,0.36021108]
[1743967442526,2.51398952,556.23,555.23,0.36021108]
[1743967443218,1.59943419,556.22,555.23,0.36021108]
[1743967443417,3.63283872,556.22,555.23,0.36021108]
[1743967443723,3.63283872,556.21,555.23,0.36021108]
[1743967443924,2.2558492,556.2,555.23,0.36021108]
[1743967444223,1.37698952,556.19,555.23,0.36021108]
[1743967444424,0.33078049,556.18,555.23,0.36021108]
[1743967444624,1.37698952,556.17,555.23,0.36021108]
[1743967444923,1.93025071,556.16,555.23,0.36021108]
[1743967445122,3.96365524,556.15,555.23,0.36021108]
[1743967445324,2.58666572,556.14,555.23,0.36021108]
[1743967445523,4.32328338,556.13,555.23,0.36021108]
[1743967445824,2.2558492,556.12,555.17,1.33871163]
[1743967446119,3.63283872,556.11,555.17,1.33871163]
[1743967446325,2.2558492,556.1,555.17,1.33871163]
[1743967446625,1.37698952,556.11,554.67,1.33871163]
[1743967446626,2.61276252,556.09,554.67,1.33871163]
[1743967446928,2.61276899,556.08,554.68,0.36056825]
[1743967447126,2.61277545,556.07,554.68,0.36056825]
[1743967447324,2.58405041,556.06,554.68,0.36056825]
[1743967447530,0.35966694,556.07,554.68,0.36056825]
[1743967447531,2.58405041,556.05,554.68,0.36056825]
[1743967447821,2.25310851,556.04,554.68,0.36056825]
[1743967448021,2.58408733,556.03,554.68,0.36056825]
[1743967448221,2.58408733,556.02,554.68,0.36056825]
[1743967448425,2.58408733,556.01,554.68,0.36056825]
[1743967448626,2.25310851,556.0,554.68,0.36056825]
[1743967448826,3.30563794,555.99,554.68,0.36056825]
[1743967449025,0.98641773,555.98,554.68,0.36056825]
[1743967449220,0.33097882,555.97,554.68,0.36056825]
[1743967449428,2.36340725,555.97,554.68,0.36056825]
[1743967449624,1.92864842,555.96,554.68,0.36056825]
[1743967449820,0.98641773,555.95,554.68,0.36056825]
[1743967450026,1.70796834,555.94,554.68,0.36056825]
[1743967450225,0.33097882,555.93,554.68,0.36056825]
[1743967450619,1.37698952,555.92,554.68,0.36056825]
[1743967450825,0.33097882,555.91,554.68,0.36056825]
[1743967451024,2.25190771,555.91,554.68,0.36056825]
[1743967451219,0.33094033,555.9,554.68,0.36056825]
[1743967451424,3.29816796,555.9,554.68,0.36056825]
[1743967451625,2.58284804,555.89,554.68,0.36056825]
[1743967451927,0.98517844,555.88,554.68,0.36056825]
[1743967452123,0.33094033,555.87,554.68,0.36056825]
[1743967452428,2.03122763,555.87,554.68,0.36056825]
[1743967452627,1.91104337,555.86,554.68,0.36056825]
[1743967453026,1.37698952,555.85,554.68,0.36056825]
[1743967453428,0.31337377,555.86,554.68,0.36056825]
[1743967454228,0.936,555.9,554.68,0.36056825]
[1743967455427,0.31334837,555.89,554.68,0.36056825]
[1743967455633,1.59218165,555.88,554.68,0.36056825]
[1743967455833,0.31334837,555.89,554.68,0.36056825]
[1743967455834,1.59218165,555.87,554.68,0.36056825]
[1743967456033,2.96917117,555.88,554.68,0.36056825]
[1743967456230,1.37698952,555.88,554.68,0.36056825]
[1743967456429,2.02990972,555.88,554.68,0.36056825]
[1743967456636,2.96917117,555.87,554.68,0.36056825]
[1743967456836,0.6529202,555.86,554.68,0.36056825]
[1743967457029,2.24504516,555.86,554.68,0.36056825]
[1743967457235,1.37698952,555.85,554.68,0.36056825]
[1743967457435,3.62203468,555.85,554.68,0.36056825]
[1743967457635,1.59218165,555.84,554.68,0.36056825]
[1743967457832,0.65267472,555.84,554.68,0.36056825]
[1743967458135,1.37698952,555.83,554.68,0.36056825]
[1743967459133,1.37698952,555.82,554.68,0.36056825]
[1743967459438,3.28066219,555.82,554.68,0.36056825]
[1743967459632,2.96729125,555.81,554.68,0.36056825]
[1743967459834,1.37698952,555.81,554.68,0.36056825]
[1743967460037,2.96692241,555.89,554.68,0.36056825]
[1743967460338,1.37698952,555.89,554.68,0.36056825]
[1743967460539,0.936,555.9,554.68,0.36056825]
[1743967462139,1.37698952,555.89,554.68,0.36056825]
[1743967462641,1.37698952,555.88,554.68,0.36056825]
[1743967463039,1.37698952,555.87,554.68,0.36056825]
[1743967463535,1.2493385,555.9,554.68,0.36056825]
[1743967464239,0.936,555.9,554.68,0.36056825]
[1743967468339,1.474,555.89,554.68,0.36056825]
[1743967473748,1.474,555.89,554.7,1.33871163]
[1743967473942,1.474,555.89,554.72,0.36054225]
[1743967476947,0.874,555.88,554.9,1.33871163]
[1743967477446,0.874,555.88,554.92,0.36041231]
[1743967478452,1.27,555.87,554.92,0.36041231]
[1743967479546,1.162,555.86,554.92,0.36041231]
[1743967482552,1.162,555.86,554.96,1.33871163]
[1743967482752,1.162,555.86,554.97,0.36037984]
[1743967486148,4.14001155,555.86,554.97,0.36037984]
[1743967486352,1.91362994,555.85,554.97,0.36037984]
[1743967486552,4.78628235,555.85,554.97,0.36037984]
[1743967486852,2.97801155,555.84,554.97,0.36037984]
[1743967487154,0.6568824,555.83,554.97,0.36037984]
[1743967487448,1.37765241,555.82,554.97,0.36037984]
[1743967487653,3.63489395,555.82,554.97,0.36037984]
[1743967487848,2.25724154,555.81,554.97,0.36037984]
[1743967488052,1.37765241,555.8,554.97,0.36037984]
[1743967488250,2.97801155,555.8,554.97,0.36037984]
[1743967488449,1.37765241,555.8,554.97,0.36037984]
[1743967488655,1.235,555.79,554.97,0.36037984]
[1743967492058,1.235,555.79,555.06,1.33871163]
[1743967493859,1.235,555.79,555.12,1.33871163]
[1743967494663,1.235,555.79,555.13,0.36027597]
[1743967496162,1.235,555.79,555.19,1.33871163]
[1743967497159,1.089,555.78,555.19,1.33871163]
[1743967498266,1.089,555.78,555.13,0.36027597]
[1743967499567,1.251,555.77,555.13,0.36027597]
[1743967500267,1.449,555.76,555.13,0.36027597]
[1743967503570,2.83673372,555.76,555.13,0.36027597]
[1743967504071,2.27352532,555.75,555.13,0.36027597]
[1743967504366,1.38773372,555.74,555.13,0.36027597]
[1743967504672,3.66094459,555.74,555.13,0.36027597]
[1743967504873,2.99962816,555.73,555.13,0.36027597]
[1743967505069,1.61189444,555.72,555.13,0.36027597]
[1743967505268,1.38773372,555.73,554.87,1.33871163]
[1743967505466,0.951,555.71,554.76,1.32761379]
[1743967505670,0.951,555.71,554.77,0.36050976]
[1743967507470,0.951,555.71,554.84,1.33871163]
[1743967507969,0.951,555.71,554.86,0.36045128]
[1743967514276,0.951,555.71,555.01,1.33871163]
[1743967514478,0.951,555.71,555.02,0.36034737]
[1743967519282,0.951,555.71,555.14,1.33871163]
[1743967519477,0.951,555.71,555.15,0.36026299]
[1743967524684,1.353,555.7,555.15,0.36026299]
[1743967527090,2.365,555.7,555.15,0.36026299]
[1743967527893,2.365,555.7,554.7,1.33871163]
[1743967528096,2.365,555.7,554.71,0.36054875]
[1743967528795,3.603,555.7,554.71,0.36054875]
[1743967530092,4.7,555.7,554.73,1.33871163]
[1743967530295,4.7,555.7,554.75,0.36052275]
[1743967531198,4.7,555.7,554.85,1.33871163]
[1743967531397,4.7,555.7,554.86,0.36045128]
[1743967537401,5.01334273,555.7,554.86,0.36045128]
[1743967538303,4.7,555.7,554.86,0.36045128]
[1743967539499,5.668,555.7,554.86,0.36045128]
[1743967540097,6.805,555.7,554.86,0.36045128]
[1743967543909,6.805,555.7,554.86,1.69916291]
[1743967544409,1.38812984,555.69,554.86,1.69916291]
[1743967545109,5.452,555.7,554.86,1.69916291]
[1743967546211,5.452,555.7,554.86,0.36045128]
[1743967547310,6.303,555.7,554.86,0.36045128]
[1743967556017,6.303,555.7,554.93,1.33871163]
[1743967558217,1.61379212,555.69,554.93,1.33871163]
[1743967558418,2.58537316,555.69,554.93,1.33871163]
[1743967558618,2.0471395,555.68,554.93,1.33871163]
[1743967558818,1.61379212,555.67,554.93,1.33871163]
[1743967559015,2.27200087,555.67,554.86,0.36045128]
[1743967559222,1.38893075,555.66,554.86,0.36045128]
[1743967559519,3.66093162,555.66,554.86,0.36045128]
[1743967559720,2.27200087,555.65,554.86,0.36045128]
[1743967559919,1.38893075,555.64,554.85,1.33871163]
[1743967560219,3.66093162,555.64,554.85,1.33871163]
[1743967560414,2.27200087,555.63,554.85,1.33871163]
[1743967560615,3.66093162,555.63,554.85,1.33871163]
[1743967560920,2.27200087,555.62,554.85,1.33871163]
[1743967561118,1.61080824,555.61,554.85,1.33871163]
[1743967561316,1.38893075,555.61,554.85,1.33871163]
[1743967561516,3.65794774,555.61,554.85,1.33871163]
[1743967561820,3.65686535,555.6,554.46,1.33871163]
[1743967562014,2.2679346,555.59,554.46,1.33871163]
[1743967562221,1.38893075,555.58,554.47,0.36070481]
[1743967562420,3.65686535,555.58,554.47,0.36070481]
[1743967562616,2.2679346,555.57,554.47,0.36070481]
[1743967562820,1.38893075,555.56,554.47,0.36070481]
[1743967563021,3.65686535,555.56,554.47,0.36070481]
[1743967563217,2.2679346,555.55,554.47,0.36070481]
[1743967563421,1.38893075,555.54,554.47,0.36070481]
[1743967563619,3.6555731,555.54,554.47,0.36070481]
[1743967563816,3.6555731,555.53,554.47,0.36070481]
[1743967564022,2.26664235,555.52,554.47,0.36070481]
[1743967564425,1.38893075,555.51,554.47,0.36070481]
[1743967564622,3.6555731,555.51,554.47,0.36070481]
[1743967564922,3.6555731,555.5,554.47,0.36070481]
[1743967565222,2.26664235,555.49,554.47,0.36070481]
[1743967565424,1.38893075,555.48,554.47,0.36070481]
[1743967565722,3.6555731,555.48,554.47,0.36070481]
[1743967566022,2.26664235,555.47,554.47,0.36070481]
[1743967566223,1.38893075,555.46,554.47,0.36070481]
[1743967566522,1.61080824,555.45,554.47,0.36070481]
[1743967566722,2.99973899,555.44,554.47,0.36070481]
[1743967567024,0.65427862,555.43,554.47,0.36070481]
[1743967567322,1.38893075,555.42,554.47,0.36070481]
[1743967567524,3.65401761,555.42,554.47,0.36070481]
[1743967567822,3.65401761,555.41,554.47,0.36070481]
[1743967568018,1.61080824,555.4,554.47,0.36070481]
[1743967568223,1.38893075,555.45,554.47,0.36070481]
[1743967568724,2.39993075,555.45,554.47,0.36070481]
[1743967569225,1.011,555.45,554.47,0.36070481]
[1743967570327,1.32453046,555.45,554.47,0.36070481]
[1743967571723,1.011,555.45,554.47,0.36070481]
[1743967574327,1.907,555.45,554.47,0.36070481]
[1743967579333,2.841,555.45,554.47,0.36070481]
[1743967582035,1.38206967,555.44,554.47,0.36070481]
[1743967582436,2.841,555.45,554.47,0.36070481]
[1743967584633,1.3836154,555.44,554.47,0.36070481]
[1743967585343,2.841,555.45,554.47,0.36070481]
[1743967586335,4.249,555.45,554.47,0.36070481]
[1743967586540,5.5,555.45,554.47,0.36070481]
[1743967586743,1.38198262,555.44,554.47,0.36070481]
[1743967588647,6.573,555.45,554.47,0.36070481]
[1743967588843,5.562,555.45,554.47,0.36070481]
[1743967590344,1.38141188,555.44,554.47,0.36070481]
[1743967591245,2.98694921,555.44,554.47,0.36070481]
[1743967591449,0.96867664,555.43,554.47,0.36070481]
[1743967591644,3.95562585,555.43,554.47,0.36070481]
[1743967591843,2.26057472,555.42,554.47,0.36070481]
[1743967592344,1.38141188,555.41,554.47,0.36070481]
[1743967592543,3.6419866,555.41,554.47,0.36070481]
[1743967592747,2.26057472,555.4,554.47,0.36070481]
[1743967592945,3.6419866,555.4,554.47,0.36070481]
[1743967593149,2.26057472,555.39,554.47,0.36070481]
[1743967593342,3.6419866,555.39,554.47,0.36070481]
[1743967593548,2.26057472,555.38,554.47,0.36070481]
[1743967593849,1.38141188,555.37,554.47,0.36070481]
[1743967594350,0.31360392,555.38,554.47,0.36070481]
[1743967596152,1.38141188,555.44,554.47,0.36070481]
[1743967597352,0.31348668,555.43,554.47,0.36070481]
[1743967597851,1.38141188,555.44,554.47,0.36070481]
[1743967598452,4.628,555.45,554.47,0.36070481]
[1743967598650,1.138,555.44,554.49,1.33871163]
[1743967598850,1.138,555.44,554.51,0.36067879]
[1743967603051,1.138,555.44,554.72,1.33871163]
[1743967603455,1.138,555.44,554.73,0.36053575]
[1743967608955,2.254,555.44,554.73,0.36053575]
[1743967609156,3.339,555.44,554.73,0.36053575]
[1743967611358,4.251,555.44,554.73,0.36053575]
[1743967612252,5.437,555.44,554.73,0.36053575]
[1743967613958,5.437,555.44,554.8,1.33871163]
[1743967614655,5.437,555.44,554.81,0.36048376]
[1743967629563,6.798,555.44,554.81,0.36048376]
[1743967670807,6.798,555.44,554.98,1.33871163]
[1743967673714,6.798,555.44,554.81,0.36048376]
[1743967675209,2.25778296,555.43,554.81,0.36048376]
[1743967675408,1.60359198,555.42,554.59,1.33871163]
[1743967675609,1.60359198,555.42,554.14,2.72353321]
[1743967675610,2.98415889,555.41,554.72,1.33871163]
[1743967675809,2.25778296,555.4,554.72,1.33871163]
[1743967676009,1.60359198,555.39,554.72,1.33871163]
[1743967676211,1.60359198,555.38,554.72,1.33871163]
[1743967676410,2.25778296,555.37,554.72,1.33871163]
[1743967676610,2.25778296,555.36,554.72,1.33871163]
[1743967676809,2.25778296,555.35,554.72,1.33871163]
[1743967677010,2.25778296,555.34,554.72,1.33871163]
[1743967677206,2.25778296,555.33,554.72,1.33871163]
[1743967677408,2.61793566,555.32,554.72,1.33871163]
[1743967677608,3.99850906,555.31,554.72,1.33871163]
[1743967677808,2.25778296,555.3,554.72,1.33871163]
[1743967678012,3.63834987,555.29,554.72,1.33871163]
[1743967678210,2.25778296,555.28,554.72,1.33871163]
[1743967678410,3.63834987,555.27,554.72,1.33871163]
[1743967678710,2.25778296,555.26,554.72,1.33871163]
[1743967678909,3.63834987,555.25,554.72,1.33871163]
[1743967679114,2.25778296,555.24,553.85,1.33871163]
[1743967679309,2.98415889,555.23,553.87,0.36109556]
[1743967679513,2.25778296,555.22,553.87,0.36109556]
[1743967679711,2.98415889,555.21,553.87,0.36109556]
[1743967680014,0.65419098,555.2,553.87,0.36109556]
[1743967680216,2.25462459,555.2,553.87,0.36109556]
[1743967680517,3.6351915,555.19,553.87,0.36109556]
[1743967680712,2.25462459,555.18,553.87,0.36109556]
[1743967680909,2.25462459,555.17,553.87,0.36109556]
[1743967681111,1.60043361,555.16,553.87,0.36109556]
[1743967681311,1.60043361,555.15,553.87,0.36109556]
[1743967681510,2.98100052,555.14,553.87,0.36109556]
[1743967681718,2.58611192,555.13,553.87,0.36109556]
[1743967682017,2.25462459,555.12,553.87,0.36109556]
[1743967682217,3.6351915,555.11,553.87,0.36109556]
[1743967682417,2.58616788,555.1,553.87,0.36109556]
[1743967682617,2.58616788,555.09,553.87,0.36109556]
[1743967682813,4.32704321,555.08,553.87,0.36109556]
[1743967683018,2.93865611,555.07,553.87,0.36109556]
[1743967683317,2.93866331,555.06,553.87,0.36109556]
[1743967683519,2.9386698,555.05,553.87,0.36109556]
[1743967683719,2.9386763,555.04,553.87,0.36109556]
[1743967683921,2.93868279,555.03,553.87,0.36109556]
[1743967684121,2.93868928,555.02,553.87,0.36109556]
[1743967684317,2.24679791,555.01,553.87,0.36109556]
[1743967684522,1.95296729,555.0,553.87,0.36109556]
[1743967684717,1.34613884,554.99,553.87,0.36109556]
[1743967684923,1.91928386,554.98,553.87,0.36109556]
[1743967685119,2.57347484,554.97,553.87,0.36109556]
[1743967685317,2.57347484,554.96,553.87,0.36109556]